[Event "Titled Tuesday Blitz October 11 Late 2022"]
[White "Shaik Sumer Arsh"]
[Black "Stanisz, Patryk"]
[WhiteFideId "45020000"]
[BlackFideId "1123106"]
[WhiteElo "2190"]
[BlackElo "2069"]
[Result "1-0"]
[Round "05"]
[TimeControl "180+1"]
[Date "2022.10.12"]
[WhiteClock "0:00:08"]
[BlackClock "0:00:02"]

1. e4 {[%clk 0:03:00]}  c5 {[%clk 0:02:59]} 2. d3 {[%clk 0:03:01]}  Nc6 {[%clk 0:02:58]} 3. f4 {[%clk 0:03:01]}  g6 {[%clk 0:02:58]} 4. c3 {[%clk 0:03:01]}  Bg7 {[%clk 0:02:57]} 5. Be3 {[%clk 0:03:01]}  d6 {[%clk 0:02:58]} 6. Nf3 {[%clk 0:03:02]}  Nf6 {[%clk 0:02:57]} 7. Be2 {[%clk 0:03:02]}  O-O {[%clk 0:02:56]} 8. O-O {[%clk 0:03:03]}  Ng4 {[%clk 0:02:56]} 9. Bc1 {[%clk 0:03:01]}  Rb8 {[%clk 0:02:56]} 10. h3 {[%clk 0:03:01]}  Nf6 {[%clk 0:02:57]} 11. Be3 {[%clk 0:03:00]}  b5 {[%clk 0:02:57]} 12. Nbd2 {[%clk 0:03:00]}  b4 {[%clk 0:02:56]} 13. Bf2 {[%clk 0:02:57]}  a5 {[%clk 0:02:56]} 14. g4 {[%clk 0:02:53]}  bxc3 {[%clk 0:02:56]} 15. bxc3 {[%clk 0:02:52]}  e6 {[%clk 0:02:50]} 16. Rc1 {[%clk 0:02:42]}  Rb2 {[%clk 0:02:46]} 17. Rc2 {[%clk 0:02:38]}  Qb6 {[%clk 0:02:47]} 18. Qc1 {[%clk 0:02:37]}  Rxc2 {[%clk 0:02:41]} 19. Qxc2 {[%clk 0:02:37]}  Ba6 {[%clk 0:02:42]} 20. Rb1 {[%clk 0:02:37]}  Qc7 {[%clk 0:02:42]} 21. Qa4 {[%clk 0:02:10]}  Nd7 {[%clk 0:02:36]} 22. Nc4 {[%clk 0:02:05]}  Bxc3 {[%clk 0:02:29]} 23. a3 {[%clk 0:01:57]}  Rb8 {[%clk 0:02:19]} 24. Rc1 {[%clk 0:01:56]}  Bg7 {[%clk 0:02:13]} 25. Ncd2 {[%clk 0:01:12]}  Rb2 {[%clk 0:02:06]} 26. Rc2 {[%clk 0:01:11]}  Bb5 {[%clk 0:02:00]} 27. Rxb2 {[%clk 0:01:01]}  Bxa4 {[%clk 0:01:59]} 28. Rb1 {[%clk 0:01:00]}  Nb6 {[%clk 0:01:57]} 29. e5 {[%clk 0:00:55]}  dxe5 {[%clk 0:01:48]} 30. Bxc5 {[%clk 0:00:54]}  Nd5 {[%clk 0:01:47]} 31. Ne4 {[%clk 0:00:37]}  exf4 {[%clk 0:01:43]} 32. Bd6 {[%clk 0:00:36]}  Qa7+ {[%clk 0:01:41]} 33. Bc5 {[%clk 0:00:35]}  Qd7 {[%clk 0:01:36]} 34. Nd6 {[%clk 0:00:24]}  Nc3 {[%clk 0:01:25]} 35. Rb7 {[%clk 0:00:24]}  Nxe2+ {[%clk 0:01:16]} 36. Kf2 {[%clk 0:00:24]}  Qd8 {[%clk 0:00:50]} 37. Kxe2 {[%clk 0:00:24]}  Nd4+ {[%clk 0:00:45]} 38. Nxd4 {[%clk 0:00:19]}  Bxd4 {[%clk 0:00:42]} 39. Nxf7 {[%clk 0:00:19]}  f3+ {[%clk 0:00:24]} 40. Kf1 {[%clk 0:00:16]}  Qf6 {[%clk 0:00:14]} 41. Nh6+ {[%clk 0:00:13]}  Kh8 {[%clk 0:00:14]} 42. g5 {[%clk 0:00:09]}  Qf4 {[%clk 0:00:02]} 43. Rb8+ {[%clk 0:00:08]}  Kg7 {[%clk 0:00:02]} 44. Rg8# {[%clk 0:00:08]} 1-0


[Site "https://www.chess.com"]

[Event "Titled Tuesday Blitz October 11 Late 2022"]
[White "Shapiro, Daniel"]
[Black "Bilan, Danila"]
[WhiteFideId "2001780"]
[BlackFideId "24161918"]
[WhiteElo "2227"]
[BlackElo "2203"]
[Result "0-1"]
[Round "05"]
[TimeControl "180+1"]
[Date "2022.10.12"]
[WhiteClock "0:00:52"]
[BlackClock "0:00:14"]

1. d4 {[%clk 0:03:00]}  d5 {[%clk 0:02:59]} 2. c4 {[%clk 0:03:00]}  c6 {[%clk 0:02:59]} 3. Nf3 {[%clk 0:03:00]}  Nf6 {[%clk 0:02:59]} 4. Qb3 {[%clk 0:03:00]}  g6 {[%clk 0:02:57]} 5. Bg5 {[%clk 0:02:58]}  Bg7 {[%clk 0:02:57]} 6. e3 {[%clk 0:02:55]}  Ne4 {[%clk 0:02:56]} 7. h4 {[%clk 0:02:53]}  Nxg5 {[%clk 0:02:46]} 8. hxg5 {[%clk 0:02:53]}  dxc4 {[%clk 0:02:40]} 9. Bxc4 {[%clk 0:02:52]}  O-O {[%clk 0:02:34]} 10. Nc3 {[%clk 0:02:48]}  Nd7 {[%clk 0:02:25]} 11. O-O-O {[%clk 0:02:47]}  Nb6 {[%clk 0:02:20]} 12. Bxf7+ {[%clk 0:02:36]}  Rxf7 {[%clk 0:02:12]} 13. Rxh7 {[%clk 0:02:37]}  Nd5 {[%clk 0:01:51]} 14. Rdh1 {[%clk 0:02:34]}  Bg4 {[%clk 0:01:46]} 15. Ne5 {[%clk 0:02:24]}  Bxe5 {[%clk 0:01:37]} 16. Rxf7 {[%clk 0:02:18]}  Kxf7 {[%clk 0:01:34]} 17. dxe5 {[%clk 0:02:18]}  Kg7 {[%clk 0:01:11]} 18. Ne4 {[%clk 0:02:10]}  Qc7 {[%clk 0:00:57]} 19. f4 {[%clk 0:01:40]}  Qb6 {[%clk 0:00:51]} 20. Re1 {[%clk 0:01:31]}  Qxb3 {[%clk 0:00:43]} 21. axb3 {[%clk 0:01:32]}  Rh8 {[%clk 0:00:35]} 22. Nf2 {[%clk 0:01:20]}  Be6 {[%clk 0:00:30]} 23. g3 {[%clk 0:01:11]}  Rh2 {[%clk 0:00:27]} 24. Nd3 {[%clk 0:01:05]}  a5 {[%clk 0:00:22]} 25. Nc5 {[%clk 0:01:01]}  Bc8 {[%clk 0:00:20]} 26. e4 {[%clk 0:00:59]}  Nb4 {[%clk 0:00:17]} 27. Kb1 {[%clk 0:00:56]}  b6 {[%clk 0:00:17]} 28. Na4 {[%clk 0:00:55]}  b5 {[%clk 0:00:15]} 29. Nc5 {[%clk 0:00:55]}  Bg4 {[%clk 0:00:15]} 30. Re3 {[%clk 0:00:52]}  Rh1+ {[%clk 0:00:14]} 0-1


[Site "https://www.chess.com"]

[Event "Titled Tuesday Blitz October 11 Late 2022"]
[White "Storey, Charles H"]
[Black "Bongo Akanga Ndjila, Barthelemy"]
[WhiteFideId "406686"]
[BlackFideId "10609431"]
[WhiteElo "2252"]
[BlackElo "1768"]
[Result "1-0"]
[Round "05"]
[TimeControl "180+1"]
[Date "2022.10.12"]
[WhiteClock "0:00:15"]
[BlackClock "0:00:01"]

1. d4 {[%clk 0:03:00]}  d5 {[%clk 0:02:58]} 2. Nf3 {[%clk 0:03:00]}  Nf6 {[%clk 0:02:58]} 3. Nc3 {[%clk 0:03:00]}  e6 {[%clk 0:02:58]} 4. Bf4 {[%clk 0:03:00]}  Bd6 {[%clk 0:02:58]} 5. e3 {[%clk 0:02:59]}  O-O {[%clk 0:02:56]} 6. Bd3 {[%clk 0:02:59]}  c5 {[%clk 0:02:56]} 7. Bxd6 {[%clk 0:02:57]}  Qxd6 {[%clk 0:02:56]} 8. dxc5 {[%clk 0:02:57]}  Qxc5 {[%clk 0:02:55]} 9. O-O {[%clk 0:02:58]}  Nc6 {[%clk 0:02:54]} 10. Nd4 {[%clk 0:02:52]}  e5 {[%clk 0:02:52]} 11. Nxc6 {[%clk 0:02:50]}  bxc6 {[%clk 0:02:50]} 12. e4 {[%clk 0:02:48]}  Qb6 {[%clk 0:02:45]} 13. Na4 {[%clk 0:02:42]}  Qb4 {[%clk 0:02:42]} 14. c3 {[%clk 0:02:41]}  Qb8 {[%clk 0:02:41]} 15. Qc2 {[%clk 0:02:35]}  a5 {[%clk 0:02:32]} 16. a3 {[%clk 0:02:27]}  Ba6 {[%clk 0:02:30]} 17. Bxa6 {[%clk 0:02:25]}  Rxa6 {[%clk 0:02:30]} 18. Nc5 {[%clk 0:02:23]}  Ra7 {[%clk 0:02:26]} 19. b4 {[%clk 0:02:20]}  axb4 {[%clk 0:02:24]} 20. axb4 {[%clk 0:02:20]}  Rxa1 {[%clk 0:02:24]} 21. Rxa1 {[%clk 0:02:21]}  Qc8 {[%clk 0:02:04]} 22. h3 {[%clk 0:02:14]}  h6 {[%clk 0:02:00]} 23. Ra7 {[%clk 0:02:07]}  Rd8 {[%clk 0:01:58]} 24. Qa2 {[%clk 0:01:58]}  Rf8 {[%clk 0:01:35]} 25. f3 {[%clk 0:01:54]}  Qd8 {[%clk 0:01:30]} 26. Nb7 {[%clk 0:01:36]}  Qb8 {[%clk 0:01:25]} 27. Nc5 {[%clk 0:01:33]}  Qd8 {[%clk 0:01:23]} 28. Ra6 {[%clk 0:01:28]}  d4 {[%clk 0:01:16]} 29. c4 {[%clk 0:01:26]}  d3 {[%clk 0:01:16]} 30. Qd2 {[%clk 0:01:02]}  Qd4+ {[%clk 0:01:16]} 31. Kh2 {[%clk 0:01:02]}  Qxc4 {[%clk 0:01:15]} 32. Rxc6 {[%clk 0:01:01]}  Nh5 {[%clk 0:01:10]} 33. Rd6 {[%clk 0:00:49]}  Nf4 {[%clk 0:01:09]} 34. Nxd3 {[%clk 0:00:48]}  Nxd3 {[%clk 0:00:29]} 35. Rxd3 {[%clk 0:00:48]}  Rb8 {[%clk 0:00:26]} 36. Rd8+ {[%clk 0:00:47]}  Rxd8 {[%clk 0:00:26]} 37. Qxd8+ {[%clk 0:00:47]}  Kh7 {[%clk 0:00:26]} 38. Qd5 {[%clk 0:00:41]}  Qxb4 {[%clk 0:00:25]} 39. Qxf7 {[%clk 0:00:41]}  Qb2 {[%clk 0:00:13]} 40. Qf5+ {[%clk 0:00:38]}  Kg8 {[%clk 0:00:13]} 41. h4 {[%clk 0:00:39]}  Qd4 {[%clk 0:00:10]} 42. h5 {[%clk 0:00:38]}  Qc3 {[%clk 0:00:10]} 43. Qe6+ {[%clk 0:00:36]}  Kh7 {[%clk 0:00:09]} 44. Qf7 {[%clk 0:00:36]}  Qd4 {[%clk 0:00:06]} 45. Qd5 {[%clk 0:00:29]}  Qb2 {[%clk 0:00:05]} 46. Qd6 {[%clk 0:00:25]}  Qc3 {[%clk 0:00:04]} 47. Kh3 {[%clk 0:00:23]}  Qa1 {[%clk 0:00:03]} 48. Kg4 {[%clk 0:00:22]}  Qb2 {[%clk 0:00:01]} 49. Qg6+ {[%clk 0:00:15]} 1-0


[Site "https://www.chess.com"]

[Event "Titled Tuesday Blitz October 11 Late 2022"]
[White "Suder, Jakub"]
[Black "Boros, Denes"]
[WhiteFideId "1195310"]
[BlackFideId "722340"]
[WhiteElo "2174"]
[BlackElo "2464"]
[Result "1/2-1/2"]
[Round "05"]
[TimeControl "180+1"]
[Date "2022.10.11"]
[WhiteClock "0:00:07"]
[BlackClock "0:00:18"]

1. d4 {[%clk 0:03:00]}  Nc6 {[%clk 0:03:00]} 2. d5 {[%clk 0:02:55]}  Nb8 {[%clk 0:03:00]} 3. e4 {[%clk 0:02:54]}  c6 {[%clk 0:03:01]} 4. c4 {[%clk 0:02:51]}  g6 {[%clk 0:03:01]} 5. Nc3 {[%clk 0:02:48]}  Bg7 {[%clk 0:03:01]} 6. Bd3 {[%clk 0:02:48]}  d6 {[%clk 0:02:59]} 7. Nge2 {[%clk 0:02:47]}  Na6 {[%clk 0:02:58]} 8. O-O {[%clk 0:02:46]}  Nf6 {[%clk 0:02:58]} 9. Kh1 {[%clk 0:02:43]}  O-O {[%clk 0:02:56]} 10. f3 {[%clk 0:02:36]}  Nc5 {[%clk 0:02:53]} 11. Bc2 {[%clk 0:02:36]}  a5 {[%clk 0:02:54]} 12. Be3 {[%clk 0:02:34]}  e5 {[%clk 0:02:52]} 13. dxc6 {[%clk 0:02:26]}  bxc6 {[%clk 0:02:52]} 14. Bxc5 {[%clk 0:02:26]}  dxc5 {[%clk 0:02:53]} 15. Qxd8 {[%clk 0:02:26]}  Rxd8 {[%clk 0:02:54]} 16. Rfd1 {[%clk 0:02:07]}  Ba6 {[%clk 0:02:48]} 17. b3 {[%clk 0:02:03]}  Bf8 {[%clk 0:02:43]} 18. Rxd8 {[%clk 0:01:58]}  Rxd8 {[%clk 0:02:43]} 19. Rd1 {[%clk 0:01:58]}  Rxd1+ {[%clk 0:02:36]} 20. Bxd1 {[%clk 0:01:58]}  Nh5 {[%clk 0:02:37]} 21. g3 {[%clk 0:01:50]}  Ng7 {[%clk 0:02:32]} 22. Nc1 {[%clk 0:01:45]}  Ne6 {[%clk 0:02:29]} 23. Nd3 {[%clk 0:01:43]}  Bd6 {[%clk 0:02:29]} 24. Kg2 {[%clk 0:01:40]}  f5 {[%clk 0:02:26]} 25. Nf2 {[%clk 0:01:13]}  Bc8 {[%clk 0:02:20]} 26. Bc2 {[%clk 0:01:07]}  Nd4 {[%clk 0:02:17]} 27. Bb1 {[%clk 0:01:04]}  h5 {[%clk 0:02:16]} 28. Na4 {[%clk 0:01:00]}  Kf7 {[%clk 0:02:14]} 29. Nd3 {[%clk 0:00:57]}  Ne6 {[%clk 0:01:47]} 30. Nb6 {[%clk 0:00:49]}  Ba6 {[%clk 0:01:42]} 31. Nd7 {[%clk 0:00:48]}  fxe4 {[%clk 0:01:31]} 32. fxe4 {[%clk 0:00:42]}  a4 {[%clk 0:01:20]} 33. N7xe5+ {[%clk 0:00:33]}  Kg7 {[%clk 0:01:20]} 34. bxa4 {[%clk 0:00:28]}  Bxe5 {[%clk 0:01:15]} 35. Nxe5 {[%clk 0:00:27]}  Kf6 {[%clk 0:01:16]} 36. Nxc6 {[%clk 0:00:24]}  Bxc4 {[%clk 0:01:14]} 37. e5+ {[%clk 0:00:24]}  Kf7 {[%clk 0:01:13]} 38. Kf2 {[%clk 0:00:20]}  Nf8 {[%clk 0:00:58]} 39. Be4 {[%clk 0:00:18]}  Ke6 {[%clk 0:00:55]} 40. Ke3 {[%clk 0:00:17]}  g5 {[%clk 0:00:54]} 41. h4 {[%clk 0:00:17]}  gxh4 {[%clk 0:00:54]} 42. gxh4 {[%clk 0:00:18]}  Bxa2 {[%clk 0:00:52]} 43. a5 {[%clk 0:00:17]}  Bc4 {[%clk 0:00:50]} 44. Kf4 {[%clk 0:00:14]}  Nd7 {[%clk 0:00:46]} 45. Bf3 {[%clk 0:00:13]}  Bb5 {[%clk 0:00:44]} 46. Na7 {[%clk 0:00:12]}  Ba6 {[%clk 0:00:43]} 47. Bxh5 {[%clk 0:00:12]}  Nxe5 {[%clk 0:00:40]} 48. Bf3 {[%clk 0:00:03]}  c4 {[%clk 0:00:40]} 49. Be4 {[%clk 0:00:03]}  c3 {[%clk 0:00:37]} 50. Ke3 {[%clk 0:00:03]}  Nc4+ {[%clk 0:00:30]} 51. Kd4 {[%clk 0:00:03]}  Nxa5 {[%clk 0:00:23]} 52. Kxc3 {[%clk 0:00:03]}  Kf6 {[%clk 0:00:24]} 53. Nc6 {[%clk 0:00:03]}  Nb7 {[%clk 0:00:25]} 54. Nd4 {[%clk 0:00:03]}  Nc5 {[%clk 0:00:24]} 55. Bd3 {[%clk 0:00:04]}  Nxd3 {[%clk 0:00:23]} 56. Kd2 {[%clk 0:00:04]}  Ke5 {[%clk 0:00:22]} 57. Ke3 {[%clk 0:00:04]}  Nb4 {[%clk 0:00:20]} 58. Nf3+ {[%clk 0:00:05]}  Kf5 {[%clk 0:00:20]} 59. Kf2 {[%clk 0:00:05]}  Kf4 {[%clk 0:00:19]} 60. h5 {[%clk 0:00:05]}  Bd3 {[%clk 0:00:19]} 61. h6 {[%clk 0:00:05]}  Bh7 {[%clk 0:00:19]} 62. Kg2 {[%clk 0:00:05]}  Nd3 {[%clk 0:00:19]} 63. Ng1 {[%clk 0:00:04]}  Kg4 {[%clk 0:00:19]} 64. Ne2 {[%clk 0:00:04]}  Ne5 {[%clk 0:00:18]} 65. Kf2 {[%clk 0:00:04]}  Kf5 {[%clk 0:00:17]} 66. Ke3 {[%clk 0:00:05]}  Ng4+ {[%clk 0:00:18]} 67. Kd4 {[%clk 0:00:05]}  Nxh6 {[%clk 0:00:19]} 68. Ng3+ {[%clk 0:00:05]}  Kf4 {[%clk 0:00:19]} 69. Ne2+ {[%clk 0:00:05]}  Kg4 {[%clk 0:00:19]} 70. Nc3 {[%clk 0:00:06]}  Nf5+ {[%clk 0:00:20]} 71. Ke5 {[%clk 0:00:06]}  Ng3 {[%clk 0:00:19]} 72. Nd5 {[%clk 0:00:06]}  Nh5 {[%clk 0:00:20]} 73. Ne3+ {[%clk 0:00:06]}  Kg5 {[%clk 0:00:20]} 74. Nd5 {[%clk 0:00:07]}  Bg6 {[%clk 0:00:20]} 75. Ne7 {[%clk 0:00:07]}  Bf7 {[%clk 0:00:19]} 76. Nd5 {[%clk 0:00:07]}  Ng3 {[%clk 0:00:18]} 77. Ne7 {[%clk 0:00:07]}  Bg8 {[%clk 0:00:18]} 78. Nxg8 {[%clk 0:00:07]} 1/2-1/2


[Site "https://www.chess.com"]

[Event "Titled Tuesday Blitz October 11 Late 2022"]
[White "Taichman, Ori"]
[Black "Rustemov, Alexander"]
[WhiteFideId "2804069"]
[BlackFideId "4119002"]
[WhiteElo "2234"]
[BlackElo "2862"]
[Result "0-1"]
[Round "05"]
[TimeControl "180+1"]
[Date "2022.10.11"]
[WhiteClock "0:01:30"]
[BlackClock "0:02:07"]

1. e4 {[%clk 0:02:58]}  e6 {[%clk 0:02:59]} 2. d4 {[%clk 0:02:57]}  d5 {[%clk 0:03:00]} 3. Nc3 {[%clk 0:02:57]}  dxe4 {[%clk 0:03:00]} 4. Nxe4 {[%clk 0:02:56]}  Bd7 {[%clk 0:03:00]} 5. Nf3 {[%clk 0:02:57]}  Bc6 {[%clk 0:03:01]} 6. Bd3 {[%clk 0:02:57]}  Nd7 {[%clk 0:03:01]} 7. O-O {[%clk 0:02:57]}  Ngf6 {[%clk 0:03:02]} 8. Ng3 {[%clk 0:02:57]}  Be7 {[%clk 0:03:02]} 9. Re1 {[%clk 0:02:54]}  O-O {[%clk 0:03:01]} 10. Ne5 {[%clk 0:02:37]}  Nxe5 {[%clk 0:02:55]} 11. dxe5 {[%clk 0:02:38]}  Qd5 {[%clk 0:02:54]} 12. f3 {[%clk 0:02:25]}  Bc5+ {[%clk 0:02:51]} 13. Kh1 {[%clk 0:02:17]}  Ng4 {[%clk 0:02:51]} 14. Ne4 {[%clk 0:02:02]}  Qxe4 {[%clk 0:02:48]} 15. Be3 {[%clk 0:01:47]}  Qxe3 {[%clk 0:02:24]} 16. fxg4 {[%clk 0:01:39]}  Qf2 {[%clk 0:02:13]} 17. Be4 {[%clk 0:01:30]}  Rad8 {[%clk 0:02:07]} 0-1


[Site "https://www.chess.com"]

[Event "Titled Tuesday Blitz October 11 Late 2022"]
[White "Tan, Ralph"]
[Black "Prieto Aranguren, Alain"]
[WhiteFideId "30966590"]
[BlackFideId "2268906"]
[WhiteElo "2059"]
[BlackElo "2209"]
[Result "1/2-1/2"]
[Round "05"]
[TimeControl "180+1"]
[Date "2022.10.12"]
[WhiteClock "0:00:22"]
[BlackClock "0:00:08"]

1. Nf3 {[%clk 0:03:00]}  f5 {[%clk 0:02:41]} 2. g3 {[%clk 0:03:00]}  Nc6 {[%clk 0:02:40]} 3. d4 {[%clk 0:03:00]}  d6 {[%clk 0:02:28]} 4. Bg2 {[%clk 0:02:59]}  e5 {[%clk 0:02:24]} 5. O-O {[%clk 0:02:56]}  e4 {[%clk 0:02:24]} 6. Ne1 {[%clk 0:02:54]}  d5 {[%clk 0:02:17]} 7. c4 {[%clk 0:02:52]}  dxc4 {[%clk 0:02:11]} 8. Qa4 {[%clk 0:02:37]}  Nf6 {[%clk 0:02:04]} 9. Nc3 {[%clk 0:02:33]}  Be6 {[%clk 0:02:02]} 10. Bg5 {[%clk 0:02:25]}  Qxd4 {[%clk 0:01:54]} 11. Rd1 {[%clk 0:02:19]}  Qc5 {[%clk 0:01:53]} 12. Bxf6 {[%clk 0:02:10]}  gxf6 {[%clk 0:01:54]} 13. Nc2 {[%clk 0:02:10]}  h5 {[%clk 0:01:37]} 14. Nb5 {[%clk 0:01:51]}  Rc8 {[%clk 0:01:29]} 15. Ne3 {[%clk 0:01:03]}  Kf7 {[%clk 0:01:26]} 16. Nc3 {[%clk 0:00:47]}  h4 {[%clk 0:01:25]} 17. Ncd5 {[%clk 0:00:39]}  b5 {[%clk 0:01:18]} 18. Qa6 {[%clk 0:00:34]}  Bd6 {[%clk 0:01:17]} 19. b4 {[%clk 0:00:26]}  Nxb4 {[%clk 0:01:13]} 20. Nxb4 {[%clk 0:00:23]}  Qxb4 {[%clk 0:01:12]} 21. Rb1 {[%clk 0:00:23]}  Qa4 {[%clk 0:01:03]} 22. Qxb5 {[%clk 0:00:17]}  Qxb5 {[%clk 0:01:01]} 23. Rxb5 {[%clk 0:00:18]}  hxg3 {[%clk 0:00:59]} 24. hxg3 {[%clk 0:00:19]}  Rb8 {[%clk 0:00:57]} 25. Rfb1 {[%clk 0:00:18]}  c6 {[%clk 0:00:56]} 26. Rb7+ {[%clk 0:00:18]}  Rxb7 {[%clk 0:00:54]} 27. Rxb7+ {[%clk 0:00:18]}  Kg6 {[%clk 0:00:47]} 28. g4 {[%clk 0:00:18]}  Rb8 {[%clk 0:00:38]} 29. gxf5+ {[%clk 0:00:17]}  Bxf5 {[%clk 0:00:38]} 30. Rxb8 {[%clk 0:00:17]}  Bxb8 {[%clk 0:00:38]} 31. Nxc4 {[%clk 0:00:18]}  Bc7 {[%clk 0:00:30]} 32. e3 {[%clk 0:00:18]}  Be6 {[%clk 0:00:27]} 33. Bxe4+ {[%clk 0:00:18]}  f5 {[%clk 0:00:27]} 34. Bd3 {[%clk 0:00:19]}  Kf6 {[%clk 0:00:25]} 35. a4 {[%clk 0:00:17]}  Bd5 {[%clk 0:00:24]} 36. Nd2 {[%clk 0:00:17]}  Ke5 {[%clk 0:00:22]} 37. Kf1 {[%clk 0:00:18]}  Ba5 {[%clk 0:00:20]} 38. Ke2 {[%clk 0:00:17]}  Bxd2 {[%clk 0:00:17]} 39. Kxd2 {[%clk 0:00:18]}  a5 {[%clk 0:00:17]} 40. Bc2 {[%clk 0:00:17]}  c5 {[%clk 0:00:14]} 41. Kc3 {[%clk 0:00:17]}  Be4 {[%clk 0:00:12]} 42. f4+ {[%clk 0:00:15]}  Kd5 {[%clk 0:00:12]} 43. Bb3+ {[%clk 0:00:15]}  Kc6 {[%clk 0:00:11]} 44. Bf7 {[%clk 0:00:15]}  Bd5 {[%clk 0:00:11]} 45. Bg6 {[%clk 0:00:15]}  Be6 {[%clk 0:00:11]} 46. Be8+ {[%clk 0:00:15]}  Kd5 {[%clk 0:00:10]} 47. Bb5 {[%clk 0:00:16]}  Ke4 {[%clk 0:00:10]} 48. Bc4 {[%clk 0:00:14]}  Bxc4 {[%clk 0:00:09]} 49. Kxc4 {[%clk 0:00:15]}  Kxe3 {[%clk 0:00:09]} 50. Kxc5 {[%clk 0:00:16]}  Kxf4 {[%clk 0:00:10]} 51. Kb5 {[%clk 0:00:17]}  Ke3 {[%clk 0:00:08]} 52. Kxa5 {[%clk 0:00:17]}  f4 {[%clk 0:00:08]} 53. Kb6 {[%clk 0:00:18]}  f3 {[%clk 0:00:08]} 54. a5 {[%clk 0:00:19]}  f2 {[%clk 0:00:09]} 55. a6 {[%clk 0:00:19]}  f1=Q {[%clk 0:00:09]} 56. a7 {[%clk 0:00:20]}  Qb1+ {[%clk 0:00:09]} 57. Kc7 {[%clk 0:00:20]}  Qc2+ {[%clk 0:00:08]} 58. Kb8 {[%clk 0:00:20]}  Qb3+ {[%clk 0:00:08]} 59. Ka8 {[%clk 0:00:20]}  Qd5+ {[%clk 0:00:08]} 60. Kb8 {[%clk 0:00:21]}  Qb5+ {[%clk 0:00:08]} 61. Ka8 {[%clk 0:00:21]}  Qc6+ {[%clk 0:00:09]} 62. Kb8 {[%clk 0:00:21]}  Qb6+ {[%clk 0:00:09]} 63. Ka8 {[%clk 0:00:22]}  Qc6+ {[%clk 0:00:10]} 64. Kb8 {[%clk 0:00:22]}  Qb6+ {[%clk 0:00:08]} 65. Ka8 {[%clk 0:00:22]}  Qc6+ {[%clk 0:00:08]} 1/2-1/2


[Site "https://www.chess.com"]

[Event "Titled Tuesday Blitz October 11 Late 2022"]
[White "Tarasova, Viktoriya"]
[Black "Vlassov, Nikolai"]
[WhiteFideId "4175840"]
[BlackFideId "4103360"]
[WhiteElo "2182"]
[BlackElo "2324"]
[Result "0-1"]
[Round "05"]
[TimeControl "180+1"]
[Date "2022.10.12"]
[WhiteClock "0:00:50"]
[BlackClock "0:01:10"]

1. d4 {[%clk 0:03:00]}  Nf6 {[%clk 0:02:54]} 2. c4 {[%clk 0:03:01]}  Nc6 {[%clk 0:02:54]} 3. d5 {[%clk 0:03:00]}  Ne5 {[%clk 0:02:54]} 4. Qd4 {[%clk 0:03:00]}  Ng6 {[%clk 0:02:54]} 5. e4 {[%clk 0:02:57]}  e5 {[%clk 0:02:54]} 6. Qd1 {[%clk 0:02:53]}  Nxe4 {[%clk 0:02:52]} 7. Bd3 {[%clk 0:02:38]}  Bb4+ {[%clk 0:02:47]} 8. Nd2 {[%clk 0:02:35]}  Nxd2 {[%clk 0:02:44]} 9. Bxd2 {[%clk 0:02:35]}  Qe7 {[%clk 0:02:43]} 10. a3 {[%clk 0:02:33]}  Bxd2+ {[%clk 0:02:43]} 11. Qxd2 {[%clk 0:02:34]}  d6 {[%clk 0:02:43]} 12. O-O-O {[%clk 0:02:34]}  O-O {[%clk 0:02:37]} 13. Ne2 {[%clk 0:02:29]}  c6 {[%clk 0:02:37]} 14. h4 {[%clk 0:02:27]}  cxd5 {[%clk 0:02:37]} 15. cxd5 {[%clk 0:02:26]}  Bd7 {[%clk 0:02:31]} 16. h5 {[%clk 0:02:25]}  Rfc8+ {[%clk 0:02:31]} 17. Kb1 {[%clk 0:02:25]}  Nf8 {[%clk 0:02:31]} 18. Ng3 {[%clk 0:02:18]}  Rc5 {[%clk 0:02:23]} 19. Be4 {[%clk 0:02:10]}  Rac8 {[%clk 0:02:20]} 20. Rdf1 {[%clk 0:02:02]}  Bb5 {[%clk 0:02:13]} 21. Nf5 {[%clk 0:01:58]}  Qf6 {[%clk 0:02:07]} 22. Re1 {[%clk 0:01:58]}  Ba4 {[%clk 0:02:00]} 23. g4 {[%clk 0:01:50]}  Bc2+ {[%clk 0:01:35]} 24. Ka1 {[%clk 0:01:49]}  Bxe4 {[%clk 0:01:31]} 25. Rxe4 {[%clk 0:01:50]}  Nd7 {[%clk 0:01:22]} 26. Rh3 {[%clk 0:01:41]}  Nb6 {[%clk 0:01:20]} 27. Rf3 {[%clk 0:01:06]}  Rxd5 {[%clk 0:01:14]} 28. Qe3 {[%clk 0:00:51]}  Rd1+ {[%clk 0:01:09]} 29. Ka2 {[%clk 0:00:50]}  Qe6+ {[%clk 0:01:10]} 0-1


[Site "https://www.chess.com"]

[Event "Titled Tuesday Blitz October 11 Late 2022"]
[White "Torres Boch, Jose Francisco"]
[Black "O`Gorman, Tom"]
[WhiteFideId "2278383"]
[BlackFideId "2508249"]
[WhiteElo "2073"]
[BlackElo "2271"]
[Result "0-1"]
[Round "05"]
[TimeControl "180+1"]
[Date "2022.10.12"]
[WhiteClock "0:00:36"]
[BlackClock "0:01:05"]

1. e4 {[%clk 0:02:56]}  c5 {[%clk 0:02:58]} 2. Nf3 {[%clk 0:02:56]}  d6 {[%clk 0:02:58]} 3. d4 {[%clk 0:02:56]}  cxd4 {[%clk 0:02:59]} 4. Nxd4 {[%clk 0:02:56]}  Nf6 {[%clk 0:03:00]} 5. Nc3 {[%clk 0:02:56]}  a6 {[%clk 0:03:00]} 6. Bg5 {[%clk 0:02:56]}  e6 {[%clk 0:02:59]} 7. f4 {[%clk 0:02:57]}  b5 {[%clk 0:03:00]} 8. e5 {[%clk 0:02:42]}  dxe5 {[%clk 0:03:00]} 9. fxe5 {[%clk 0:02:42]}  Qc7 {[%clk 0:02:59]} 10. exf6 {[%clk 0:02:36]}  Qe5+ {[%clk 0:02:59]} 11. Be2 {[%clk 0:02:36]}  Qxg5 {[%clk 0:02:59]} 12. O-O {[%clk 0:02:36]}  Ra7 {[%clk 0:02:59]} 13. Qd3 {[%clk 0:02:29]}  Rd7 {[%clk 0:02:58]} 14. Ne4 {[%clk 0:02:29]}  Qe5 {[%clk 0:02:58]} 15. Nf3 {[%clk 0:02:22]}  Qc7 {[%clk 0:02:58]} 16. Qe3 {[%clk 0:02:16]}  Qa7 {[%clk 0:02:59]} 17. Qxa7 {[%clk 0:02:08]}  Rxa7 {[%clk 0:03:00]} 18. a4 {[%clk 0:02:07]}  bxa4 {[%clk 0:02:51]} 19. Rxa4 {[%clk 0:02:05]}  gxf6 {[%clk 0:02:34]} 20. Nxf6+ {[%clk 0:02:03]}  Ke7 {[%clk 0:02:34]} 21. Ng5 {[%clk 0:01:55]}  h6 {[%clk 0:02:13]} 22. Nd5+ {[%clk 0:01:41]}  exd5 {[%clk 0:02:10]} 23. Rxf7+ {[%clk 0:01:40]}  Ke8 {[%clk 0:02:08]} 24. Rxa7 {[%clk 0:01:39]}  Bc5+ {[%clk 0:02:07]} 25. Kf1 {[%clk 0:01:36]}  Bxa7 {[%clk 0:02:08]} 26. Bh5+ {[%clk 0:01:35]}  Ke7 {[%clk 0:02:05]} 27. Nf7 {[%clk 0:01:26]}  Rf8 {[%clk 0:02:05]} 28. Ke2 {[%clk 0:01:26]}  Rxf7 {[%clk 0:01:59]} 29. Bxf7 {[%clk 0:01:24]}  Kxf7 {[%clk 0:02:00]} 30. c4 {[%clk 0:01:18]}  d4 {[%clk 0:01:53]} 31. b4 {[%clk 0:01:17]}  Bg4+ {[%clk 0:01:53]} 32. Kd2 {[%clk 0:01:13]}  Ke6 {[%clk 0:01:50]} 33. b5 {[%clk 0:01:13]}  Kd6 {[%clk 0:01:50]} 34. bxa6 {[%clk 0:01:12]}  Kc5 {[%clk 0:01:49]} 35. h3 {[%clk 0:01:08]}  Bc8 {[%clk 0:01:46]} 36. g4 {[%clk 0:01:03]}  Bxa6 {[%clk 0:01:44]} 37. h4 {[%clk 0:01:01]}  Bb6 {[%clk 0:01:38]} 38. g5 {[%clk 0:01:01]}  hxg5 {[%clk 0:01:38]} 39. hxg5 {[%clk 0:01:01]}  Bxc4 {[%clk 0:01:30]} 40. g6 {[%clk 0:00:59]}  Nd7 {[%clk 0:01:28]} 41. Ra8 {[%clk 0:00:56]}  Nf6 {[%clk 0:01:26]} 42. Rf8 {[%clk 0:00:55]}  Ng8 {[%clk 0:01:23]} 43. Rc8+ {[%clk 0:00:55]}  Kb5 {[%clk 0:01:20]} 44. Rb8 {[%clk 0:00:53]}  Ka6 {[%clk 0:01:18]} 45. Rc8 {[%clk 0:00:51]}  Ba5+ {[%clk 0:01:17]} 46. Kd1 {[%clk 0:00:50]}  Kb5 {[%clk 0:01:17]} 47. Rb8+ {[%clk 0:00:48]}  Ka4 {[%clk 0:01:14]} 48. Ra8 {[%clk 0:00:46]}  d3 {[%clk 0:01:12]} 49. g7 {[%clk 0:00:37]}  Bb3+ {[%clk 0:01:11]} 50. Kc1 {[%clk 0:00:36]}  d2+ {[%clk 0:01:12]} 51. Kb2 {[%clk 0:00:36]}  d1=Q {[%clk 0:01:05]} 52. Rxa5+ {[%clk 0:00:35]}  Kxa5 {[%clk 0:01:05]} 53. Ka3 {[%clk 0:00:36]} 0-1


[Site "https://www.chess.com"]